fUSD/lending_fUSD_20250620
["ID","MTS","AMOUNT","RATE_DAILY","PERIOD"]
[366720681,1750416656480,-490.0,0.00026838,4]
[366720682,1750416656742,-490.0,0.00026838,4]
[366720683,1750416656753,-490.0,0.00026838,4]
[366720684,1750416656765,-490.0,0.00026838,4]
[366720685,1750416656776,-490.0,0.00026838,4]
[366720686,1750416656787,-490.0,0.00026838,4]
[366720687,1750416656797,-490.0,0.00026838,4]
[366720688,1750416656807,-490.0,0.00026838,4]
[366720689,1750416656817,-490.0,0.00026838,4]
[366720690,1750416656827,-1132.4,0.00026838,4]
[366720691,1750416656836,-498.68501454,0.00026838,4]
[366720692,1750416656846,-490.0,0.00026838,4]
[366720693,1750416656856,-490.0,0.00026838,4]
[366720694,1750416656866,-490.0,0.00026838,4]
[366720695,1750416656876,-547.42,0.00026838,4]
[366720696,1750416656886,-490.0,0.00026838,4]
[366720697,1750416656895,-653.23,0.00026838,4]
[366720698,1750416656905,-490.0,0.00026838,4]
[366720699,1750416656915,-490.0,0.00026838,4]
[366720700,1750416656926,-856.82,0.00026838,4]
[366720701,1750416656935,-490.0,0.00026838,4]
[366720702,1750416656944,-1334.86,0.00026838,4]
[366720703,1750416656954,-490.0,0.00026838,4]
[366720704,1750416656964,-490.0,0.00026838,4]
[366720705,1750416656974,-490.0,0.00026838,4]
[366720706,1750416656986,-490.0,0.00026838,4]
[366720707,1750416656996,-490.0,0.00026838,4]
[366720708,1750416657008,-155.91,0.00026838,4]
[366720709,1750416657019,-490.0,0.00026838,4]
[366720710,1750416657031,-490.0,0.00026838,4]
[366720711,1750416657042,-490.0,0.00026839,4]
[366720712,1750416657053,-151.0,0.00026849,7]
[366720713,1750416657062,-277.183252,0.00026849,7]
[366720714,1750416657072,-201.25753555,0.00026983,16]
[366720715,1750416657082,-159.15296309,0.00027011,2]
[366720716,1750416657093,-9166.08578306,0.00027071,3]
[366720717,1750416657103,-18332.1715661,0.00027081,3]
[366720718,1750416657112,-4583.04289153,0.00027081,3]
[366720719,1750416657122,-4583.04289153,0.0002709,3]
[366720720,1750416657133,-4583.04289153,0.00027091,3]
[366720721,1750416657144,-490.0,0.00027091,4]
[366720722,1750416657154,-490.0,0.00027091,4]
[366720723,1750416657164,-490.0,0.00027091,4]
[366720724,1750416657175,-490.0,0.00027091,4]
[366720725,1750416657184,-490.0,0.00027091,4]
[366720726,1750416657194,-581.66,0.00027091,4]
[366720727,1750416657203,-868.01,0.00027091,4]
[366720728,1750416657214,-490.0,0.00027091,4]
[366720729,1750416657223,-490.0,0.00027091,4]
[366720730,1750416657233,-490.0,0.00027091,4]
[366720731,1750416657244,-490.0,0.00027091,4]
[366720732,1750416657253,-490.0,0.00027091,4]
[366720733,1750416657263,-490.0,0.00027091,4]
[366720734,1750416657272,-490.0,0.00027091,4]
[366720735,1750416657282,-490.0,0.00027091,4]
[366720736,1750416657292,-1303.97,0.00027091,4]
[366720737,1750416657302,-671.28,0.00027091,4]
[366720738,1750416657311,-1029.65,0.00027091,4]
[366720739,1750416657321,-956.93,0.00027091,4]
[366720740,1750416657331,-561.7,0.00027091,4]
[366720741,1750416657341,-490.0,0.00027091,4]
[366720742,1750416657352,-490.0,0.00027091,4]
[366720743,1750416657362,-490.0,0.00027091,4]
[366720744,1750416657372,-511.18,0.00027091,4]
[366720745,1750416657382,-953.8,0.00027091,4]
[366720746,1750416657392,-490.0,0.00027091,4]
[366720747,1750416657402,-2602.41,0.00027091,4]
[366720748,1750416657412,-540.02,0.00027091,4]
[366720749,1750416657422,-490.0,0.00027091,4]
[366720750,1750416657432,-490.0,0.00027091,4]
[366720751,1750416657442,-492.72,0.00027091,4]
[366720752,1750416657452,-930.06,0.00027091,4]
[366720753,1750416657462,-490.0,0.00027091,4]
[366720754,1750416657472,-490.0,0.00027091,4]
[366720755,1750416657482,-539.49538209,0.00027091,4]
[366720756,1750416657492,-490.0,0.00027091,4]
[366720757,1750416657502,-490.0,0.00027091,4]
[366720758,1750416657512,-490.0,0.00027091,4]
[366720759,1750416657522,-592.84,0.00027091,4]
[366720760,1750416657533,-4583.04289153,0.00027091,3]
[366720761,1750416657543,-946.0,0.000271,2]
[366720762,1750416657554,-803.0,0.000271,2]
[366720763,1750416657563,-638.0,0.000271,2]
[366720764,1750416657571,-2004.0,0.000271,2]
[366720765,1750416657580,-556.684,0.000271,2]
[366720766,1750416657589,-1278.0,0.000271,2]
[366720767,1750416657599,-591.0,0.000271,2]
[366720768,1750416657608,-885.0,0.000271,2]
[366720769,1750416657618,-156.0,0.000271,2]
[366720770,1750416657630,-4094.0,0.000271,2]
[366720771,1750416657640,-855.0,0.000271,2]
[366720772,1750416657651,-490.0,0.000271,4]
[366720773,1750416657661,-737.14,0.000271,4]
[366720774,1750416657670,-490.0,0.00027101,4]
[366720775,1750416657679,-490.0,0.00027101,4]
[366720776,1750416657689,-521.28,0.00027101,4]
[366720777,1750416657699,-968.45,0.00027101,4]
[366720778,1750416657714,-490.0,0.00027101,4]
[366720779,1750416657724,-490.0,0.00027101,4]
[366720780,1750416657733,-490.0,0.00027101,4]
[366720781,1750416657742,-463.44166398,0.00027101,4]
[366720782,1750416657757,-26.55833602,0.00027101,4]
[366720783,1750416657765,-490.0,0.00027101,4]
[366720784,1750416657774,-490.0,0.00027101,4]
[366720785,1750416657785,-490.0,0.00027101,4]
[366720786,1750416657796,-490.0,0.00027101,4]
[366720787,1750416657806,-490.0,0.00027101,4]
[366720788,1750416657815,-490.0,0.00027101,4]
[366720789,1750416657836,-490.0,0.00027101,4]
[366720790,1750416657850,-578.61822372,0.00027101,4]
[366720791,1750416657861,-848.41,0.00027101,4]
[366720792,1750416657872,-4583.04289153,0.00027102,3]
[366720793,1750416657882,-490.0,0.00027111,4]
[366720794,1750416657892,-494.63,0.00027112,4]
[366720795,1750416657902,-490.0,0.00027112,4]
[366720796,1750416657912,-570.07,0.00027112,4]
[366720797,1750416657922,-490.0,0.00027112,4]
[366720798,1750416657933,-490.0,0.00027112,4]
[366720799,1750416657943,-500.38,0.00027112,4]
[366720800,1750416657952,-490.0,0.00027112,4]
[366720801,1750416657962,-490.0,0.00027112,4]
[366720802,1750416657972,-1055.86,0.00027112,4]
[366720803,1750416657983,-490.0,0.00027112,4]
[366720804,1750416657994,-635.6,0.00027112,4]
[366720805,1750416658005,-490.0,0.00027112,4]
[366720806,1750416658015,-135.47176389,0.00027112,4]
[366720807,1750416658032,-354.52823611,0.00027112,4]
[366720808,1750416658042,-490.0,0.00027112,4]
[366720809,1750416658052,-490.0,0.00027112,4]
[366720810,1750416658063,-490.0,0.00027112,4]
[366720811,1750416658075,-490.0,0.00027112,4]
[366720812,1750416658085,-490.0,0.00027112,4]
[366720813,1750416658095,-490.0,0.00027112,4]
[366720814,1750416658107,-434.92339286,0.00027112,4]
[366720815,1750416658119,-1132.4,0.00027112,4]
[366720816,1750416658129,-453.21892642,0.00027112,4]
[366720817,1750416658139,-490.0,0.00027112,4]
[366720818,1750416658150,-547.42,0.00027112,4]
[366720819,1750416658159,-490.0,0.00027112,4]
[366720820,1750416658169,-653.23,0.00027112,4]
[366720821,1750416658180,-490.0,0.00027112,4]
[366720822,1750416658190,-282.23761275,0.00027112,4]
[366720823,1750416658200,-856.82,0.00027112,4]
[366720824,1750416658211,-490.0,0.00027112,4]
[366720825,1750416658221,-1334.86,0.00027112,4]
[366720826,1750416658231,-490.0,0.00027112,4]
[366720827,1750416658242,-490.0,0.00027112,4]
[366720828,1750416658252,-490.0,0.00027112,4]
[366720829,1750416658263,-490.0,0.00027112,4]
[366720830,1750416658280,-490.0,0.00027112,4]
[366720831,1750416658290,-490.0,0.00027112,4]
[366720832,1750416658301,-490.0,0.00027112,4]
[366720833,1750416658311,-490.0,0.00027113,4]
[366720834,1750416658320,-834.11677829,0.00027162,2]
[366720835,1750416658330,-154.32703235,0.00027168,2]
[366720836,1750416658341,-772.73,0.000272,2]
[366720837,1750416658351,-49.28656366,0.00027365,4]
[366720839,1750416671687,202.0,0.00022348,2]
[366720842,1750416799627,153.41,0.00013699,2]
[366720845,1750416813879,150.0,0.00023102,2]
[366720847,1750416842249,-1000.0,0.00027397,120]
[366720848,1750416842272,-194.0,0.00027397,120]
[366720852,1750416909060,1341.594591,7.945e-05,2]
[366720875,1750417449011,664.26,0.00024944,120]
[366720883,1750417762463,174.3,0.00024795,120]
[366720884,1750417765872,154.53,0.00013699,2]
[366720894,1750417831772,-1007.62648342,0.00024627,2]
[366720895,1750417831782,-73.54456206,0.00024727,2]
[366720896,1750417831932,-134.45543794,0.00024727,2]
[366720897,1750417831943,-203.0,0.00024727,2]
[366720898,1750417831954,-205.0,0.00024727,2]
[366720899,1750417831964,-169.31432995,0.00024772,2]
[366720900,1750417831974,-375.03,0.00024795,2]
[366720901,1750417831985,-1000.0,0.00024897,2]
[366720902,1750417831996,-1200.0,0.00025355,2]
[366720903,1750417832006,-1294.8074,0.00025356,2]
[366720904,1750417832016,-3391.13263633,0.00025356,2]
[366720905,1750417832028,-1608.86736367,0.00025356,2]
[366720906,1750417832038,-492.91590628,0.00025356,2]
[366720907,1750417832049,-154.12550214,0.00025356,2]
[366720908,1750417832059,-667.7683587,0.00025356,2]
[366720909,1750417832068,-151.48536039,0.00025356,2]
[366720910,1750417832078,-417.21384185,0.00025446,3]
[366720911,1750417832090,-3529.05961605,0.00025446,3]
[366720912,1750417832102,-774.48716475,0.00025446,3]
[366720913,1750417832113,-10767.60928673,0.00025446,3]
[366720914,1750417832124,-7026.7742699,0.00025446,3]
[366720915,1750417832156,-10163.94508792,0.00025446,3]
[366720916,1750417832166,-512.37,0.00025446,2]
[366720917,1750417832176,-300.0,0.00025454,2]
[366720918,1750417832186,-500.0,0.00025455,2]
[366720919,1750417832197,-500.0,0.00025455,2]
[366720921,1750417832206,-374.33145533,0.00025455,2]
[366720923,1750417832216,-500.0,0.00025455,2]
[366720924,1750417832226,-500.0,0.00025455,2]
[366720925,1750417832235,-274.81075773,0.00025455,2]
[366720926,1750417832245,-500.0,0.00025455,2]
[366720928,1750417832256,-492.96784616,0.00025456,4]
[366720930,1750417832266,-490.0,0.00025456,4]
[366720932,1750417832276,-490.0,0.00025456,4]
[366720934,1750417832285,-490.0,0.00025456,4]
[366720936,1750417832295,-490.0,0.00025456,4]
[366720938,1750417832306,-491.04940696,0.00025456,4]
[366720940,1750417832316,-495.21041319,0.00025456,4]
[366720942,1750417832326,-490.0,0.00025456,4]
[366720944,1750417832336,-490.0,0.00025456,4]
[366720946,1750417832346,-490.0,0.00025456,4]
[366720948,1750417832355,-508.7,0.00025456,4]
[366720950,1750417832365,-490.0,0.00025456,4]
[366720952,1750417832375,-490.0,0.00025456,4]
[366720954,1750417832384,-366.61503271,0.00025456,4]
[366720956,1750417832397,-150.48496729,0.00025456,4]
[366720958,1750417832406,-567.0887968,0.00025456,4]
[366720960,1750417832416,-490.0,0.00025456,4]
[366720962,1750417832425,-490.0,0.00025456,4]
[366720964,1750417832436,-490.0,0.00025456,4]
[366720966,1750417832446,-462.23013714,0.00025456,4]
[366720968,1750417832455,-1109.578927,0.00025456,4]
[366720970,1750417832465,-490.0,0.00025456,4]
[366720972,1750417832474,-490.0,0.00025456,4]
[366720974,1750417832484,-490.0,0.00025456,4]
[366720976,1750417832493,-1589.352273,0.00025456,4]
[366720979,1750417832504,-490.0,0.00025456,4]
[366720981,1750417832513,-490.0,0.00025456,4]
[366720983,1750417832523,-490.0,0.00025456,4]
[366720985,1750417832533,-490.0,0.00025456,4]
[366720987,1750417832543,-490.0,0.00025456,4]
[366720989,1750417832553,-490.0,0.00025456,4]
[366720991,1750417832563,-490.0,0.00025456,4]
[366720993,1750417832574,-490.0,0.00025456,4]
[366720995,1750417832583,-503.31792559,0.00025456,4]
[366720997,1750417832593,-490.0,0.00025456,4]
[366720999,1750417832603,-490.0,0.00025456,4]
[366721001,1750417832617,-490.0,0.00025456,4]
[366721003,1750417832627,-599.81965812,0.00025456,4]
[366721005,1750417832637,-289.56077985,0.00025456,4]
[366721007,1750417832647,-490.0,0.00025456,4]
[366721009,1750417832658,-1167.0,0.00025456,4]
[366721010,1750417832668,-490.0,0.00025456,4]
[366721011,1750417832678,-490.0,0.00025456,4]
[366721012,1750417832687,-490.0,0.00025456,4]
[366721013,1750417832697,-490.0,0.00025456,4]
[366721014,1750417832707,-490.0,0.00025456,4]
[366721015,1750417832717,-490.0,0.00025456,4]
[366721016,1750417832727,-499.72103063,0.00025456,4]
[366721017,1750417832737,-490.0,0.00025456,4]
[366721018,1750417832747,-490.0,0.00025456,4]
[366721019,1750417832756,-490.0,0.00025456,4]
[366721020,1750417832767,-490.0,0.00025456,4]
[366721021,1750417832777,-490.0,0.00025456,4]
[366721022,1750417832787,-490.0,0.00025456,4]
[366721023,1750417832797,-511.3,0.00025456,4]
[366721024,1750417832808,-490.0,0.00025456,4]
[366721025,1750417832818,-490.0,0.00025456,4]
[366721026,1750417832828,-2411.84,0.00025456,4]
[366721027,1750417832838,-490.0,0.00025456,4]
[366721028,1750417832848,-490.0,0.00025456,4]
[366721029,1750417832857,-490.0,0.00025456,4]
[366721030,1750417832866,-183.67020745,0.00025456,4]
[366721031,1750417832876,-160.85117118,0.00025456,4]
[366721032,1750417832886,-515.42670839,0.00025456,4]
[366721033,1750417832896,-490.0,0.00025456,4]
[366721034,1750417832906,-970.0,0.00025456,4]
[366721035,1750417832916,-490.0,0.00025456,4]
[366721036,1750417832926,-490.0,0.00025456,4]
[366721037,1750417832936,-490.0,0.00025456,4]
[366721038,1750417832946,-552.86,0.00025456,4]
[366721039,1750417832956,-462.26601439,0.00025456,4]
[366721040,1750417832965,-490.0,0.00025456,4]
[366721041,1750417832975,-490.0,0.00025456,4]
[366721042,1750417832986,-490.0,0.00025456,4]
[366721043,1750417832995,-490.0,0.00025456,4]
[366721044,1750417833005,-490.0,0.00025456,4]
[366721045,1750417833015,-490.0,0.00025456,4]
[366721046,1750417833024,-490.0,0.00025456,4]
[366721047,1750417833034,-490.0,0.00025456,4]
[366721048,1750417833045,-490.0,0.00025456,4]
[366721049,1750417833055,-490.0,0.00025456,4]
[366721050,1750417833065,-490.0,0.00025456,4]
[366721051,1750417833075,-490.0,0.00025456,4]
[366721052,1750417833086,-490.0,0.00025456,4]
[366721053,1750417833096,-490.0,0.00025456,4]
[366721054,1750417833105,-490.0,0.00025456,4]
[366721055,1750417833115,-490.0,0.00025456,4]
[366721056,1750417833125,-490.0,0.00025456,4]
[366721057,1750417833135,-490.0,0.00025456,4]
[366721058,1750417833145,-490.0,0.00025456,4]
[366721059,1750417833155,-490.0,0.00025456,4]
[366721060,1750417833165,-740.02,0.00025456,4]
[366721061,1750417833174,-490.0,0.00025456,4]
[366721062,1750417833184,-490.0,0.00025456,4]
[366721063,1750417833195,-490.0,0.00025456,4]
[366721064,1750417833205,-490.0,0.00025456,4]
[366721065,1750417833214,-490.0,0.00025456,4]
[366721066,1750417833225,-620.55,0.00025456,4]
[366721067,1750417833235,-490.0,0.00025456,4]
[366721068,1750417833245,-490.0,0.00025456,4]
[366721069,1750417833255,-490.0,0.00025456,4]
[366721070,1750417833265,-490.0,0.00025456,4]
[366721071,1750417833275,-490.0,0.00025456,4]
[366721072,1750417833285,-490.0,0.00025456,4]
[366721073,1750417833295,-552.22671253,0.00025456,4]
[366721074,1750417833305,-490.0,0.00025456,4]
[366721075,1750417833315,-490.0,0.00025456,4]
[366721076,1750417833324,-590.0,0.00025456,4]
[366721077,1750417833336,-490.0,0.00025456,4]
[366721078,1750417833347,-490.0,0.00025456,4]
[366721079,1750417833358,-490.0,0.00025456,4]
[366721080,1750417833368,-490.0,0.00025456,4]
[366721081,1750417833378,-1075.71,0.00025456,4]
[366721082,1750417833388,-490.0,0.00025456,4]
[366721083,1750417833397,-490.0,0.00025456,4]
[366721084,1750417833408,-490.0,0.00025456,4]
[366721085,1750417833417,-490.0,0.00025456,4]
[366721086,1750417833427,-490.0,0.00025456,4]
[366721087,1750417833438,-490.0,0.00025456,4]
[366721088,1750417833448,-388.79803693,0.00025456,4]
[366721089,1750417833458,-622.23,0.00025456,4]
[366721090,1750417833468,-492.09097797,0.00025456,4]
[366721091,1750417833478,-490.0,0.00025456,4]
[366721092,1750417833488,-490.0,0.00025456,4]
[366721093,1750417833498,-514.95,0.00025456,4]
[366721094,1750417833508,-490.0,0.00025456,4]
[366721095,1750417833518,-490.0,0.00025456,4]
[366721096,1750417833528,-490.0,0.00025456,4]
[366721097,1750417833538,-492.94593761,0.00025456,4]
[366721098,1750417833548,-490.0,0.00025456,4]
[366721099,1750417833559,-490.0,0.00025456,4]
[366721100,1750417833569,-490.0,0.00025456,4]
[366721101,1750417833579,-415.86924372,0.00025456,4]
[366721102,1750417833589,-490.0,0.00025456,4]
[366721103,1750417833599,-490.0,0.00025456,4]
[366721104,1750417833611,-390.91119916,0.00025456,4]
[366721105,1750417833630,-462.95,0.00025456,4]
[366721106,1750417833640,-490.0,0.00025456,4]
[366721107,1750417833650,-490.0,0.00025456,4]
[366721108,1750417833661,-490.0,0.00025456,4]
[366721109,1750417833672,-490.0,0.00025456,4]
[366721110,1750417833683,-490.0,0.00025456,4]
[366721111,1750417833695,-490.0,0.00025456,4]
[366721112,1750417833706,-490.0,0.00025456,4]
[366721113,1750417833716,-490.0,0.00025456,4]
[366721114,1750417833726,-490.0,0.00025456,4]
[366721115,1750417833737,-490.0,0.00025456,4]
[366721116,1750417833747,-490.0,0.00025456,4]
[366721117,1750417833758,-349.69883789,0.00025456,4]
[366721118,1750417837836,-140.30116211,0.00025456,4]
[366721119,1750417837846,-452.02215551,0.00025456,4]
[366721335,1750417840256,-692.729072,0.00025328,2]
[366721337,1750417840266,-37.97784449,0.00025456,4]
[366721339,1750417840276,-490.0,0.00025456,4]
[366721341,1750417840286,-1322.62,0.00025456,4]
[366721343,1750417840296,-181.86238221,0.00025456,4]
[366721345,1750417840311,-206.20061657,0.00025456,4]
[366721347,1750417840322,-490.0,0.00025456,4]
[366721349,1750417840332,-490.0,0.00025456,4]
[366721351,1750417840342,-490.0,0.00025456,4]
[366721353,1750417840352,-490.0,0.00025456,4]
[366721355,1750417840362,-490.0,0.00025456,4]
[366721357,1750417840372,-490.0,0.00025456,4]
[366721359,1750417840382,-510.0,0.00025456,4]
[366721361,1750417840393,-490.0,0.00025456,4]
[366721363,1750417840403,-791.89,0.00025456,4]
[366721365,1750417840414,-490.0,0.00025456,4]
[366721367,1750417840424,-490.0,0.00025456,4]
[366721369,1750417840434,-490.0,0.00025456,4]
[366721371,1750417840444,-490.0,0.00025456,4]
[366721372,1750417840454,-490.0,0.00025456,4]
[366721373,1750417840463,-490.0,0.00025456,4]
[366721374,1750417840473,-490.0,0.00025456,4]
[366721375,1750417840482,-490.0,0.00025456,4]
[366721376,1750417840492,-978.05,0.00025456,4]
[366721377,1750417840502,-490.0,0.00025456,4]
[366721378,1750417840512,-490.0,0.00025456,4]
[366721379,1750417840521,-490.0,0.00025456,4]
[366721380,1750417840531,-490.0,0.00025456,4]
[366721381,1750417840541,-290.63636453,0.00025456,4]
[366721382,1750417840550,-490.0,0.00025456,4]
[366721383,1750417840561,-364.48,0.00025456,4]
[366721384,1750417840571,-490.0,0.00025456,4]
[366721385,1750417840582,-490.0,0.00025456,4]
[366721386,1750417840592,-490.0,0.00025456,4]
[366721407,1750417840846,-490.0,0.00025456,4]
[366721410,1750417840858,-490.0,0.00025456,4]
[366721412,1750417840869,-490.0,0.00025456,4]
[366721414,1750417840879,-490.0,0.00025456,4]
[366721416,1750417840889,-490.0,0.00025456,4]
[366721418,1750417840899,-490.0,0.00025456,4]
[366721420,1750417840908,-490.0,0.00025456,4]
[366721422,1750417840917,-490.0,0.00025456,4]
[366721424,1750417840927,-490.0,0.00025456,4]
[366721426,1750417840937,-650.28,0.00025456,4]
[366721428,1750417840947,-490.0,0.00025456,4]
[366721430,1750417840957,-490.0,0.00025456,4]
[366721432,1750417840967,-300.0,0.00025456,4]
[366721434,1750417840977,-490.0,0.00025456,4]
[366721436,1750417840988,-490.0,0.00025456,4]
[366721438,1750417840998,-490.0,0.00025456,4]
[366721440,1750417841008,-490.0,0.00025456,4]
[366721442,1750417841018,-490.0,0.00025456,4]
[366721444,1750417841027,-490.0,0.00025456,4]
[366721446,1750417841038,-752.07,0.00025456,4]
[366721448,1750417841048,-490.0,0.00025456,4]
[366721450,1750417841057,-490.0,0.00025456,4]
[366721452,1750417841068,-490.0,0.00025456,4]
[366721454,1750417841078,-490.0,0.00025456,4]
[366721456,1750417841088,-490.0,0.00025456,4]
[366721458,1750417841099,-490.0,0.00025456,4]
[366721460,1750417841108,-490.0,0.00025456,4]
[366721462,1750417841119,-490.0,0.00025456,4]
[366721465,1750417841128,-490.0,0.00025456,4]
[366721467,1750417841139,-490.0,0.00025456,4]
[366721469,1750417841148,-490.0,0.00025456,4]
[366721471,1750417841158,-641.41,0.00025456,4]
[366721473,1750417841168,-490.0,0.00025456,4]
[366721475,1750417841178,-490.0,0.00025456,4]
[366721477,1750417841188,-490.0,0.00025456,4]
[366721479,1750417841197,-490.0,0.00025456,4]
[366721481,1750417841207,-490.0,0.00025456,4]
[366721483,1750417841217,-490.0,0.00025456,4]
[366721485,1750417841228,-490.0,0.00025456,4]
[366721487,1750417841237,-490.0,0.00025456,4]
[366721488,1750417841247,-490.0,0.00025456,4]
[366721489,1750417841256,-492.6692494,0.00025456,4]
[366721491,1750417841266,-490.0,0.00025456,4]
[366721493,1750417841275,-490.0,0.00025456,4]
[366721495,1750417841285,-490.0,0.00025456,4]
[366721497,1750417841295,-490.0,0.00025456,4]
[366721499,1750417841304,-490.0,0.00025456,4]
[366721501,1750417841314,-542.2,0.00025456,4]
[366721503,1750417841323,-490.0,0.00025456,4]
[366721505,1750417841333,-490.0,0.00025456,4]
[366721507,1750417841343,-490.0,0.00025456,4]
[366721509,1750417841352,-977.97,0.00025456,4]
[366721511,1750417841362,-490.0,0.00025456,4]
[366721513,1750417841371,-490.0,0.00025456,4]
[366721516,1750417841391,-490.0,0.00025456,4]
[366721518,1750417841403,-490.0,0.00025456,4]
[366721520,1750417841414,-490.0,0.00025456,4]
[366721522,1750417841423,-490.0,0.00025456,4]
[366721524,1750417841433,-849.3,0.00025456,4]
[366721526,1750417841443,-490.0,0.00025456,4]
[366721528,1750417841453,-273.79,0.00025456,4]
[366721530,1750417841463,-531.93,0.00025456,4]
[366721532,1750417841473,-490.0,0.00025456,4]
[366721534,1750417841483,-315.2,0.00025456,4]
[366721536,1750417841494,-490.0,0.00025456,4]
[366721538,1750417841504,-490.0,0.00025456,4]
[366721540,1750417841514,-490.0,0.00025456,4]
[366721541,1750417841524,-1906.76,0.00025456,4]
[366721543,1750417841534,-1340.03,0.00025456,4]
[366721545,1750417841543,-490.0,0.00025456,4]
[366721548,1750417841555,-490.0,0.00025456,4]
[366721549,1750417841566,-490.0,0.00025456,4]
[366721552,1750417841576,-297.03,0.00025456,4]
[366721553,1750417841586,-519.04,0.00025456,4]
[366721556,1750417841596,-403.79177055,0.00025456,4]
[366721558,1750417841607,-490.0,0.00025456,4]
[366721560,1750417841621,-772.23,0.00025456,4]
[366721562,1750417841631,-490.0,0.00025456,4]
[366721563,1750417841641,-490.0,0.00025456,4]
[366721566,1750417841651,-490.0,0.00025456,4]
[366721568,1750417841662,-490.0,0.00025456,4]
[366721570,1750417841672,-619.23439462,0.00025456,4]
[366721572,1750417841683,-490.0,0.00025456,4]
[366721574,1750417841693,-414.33757556,0.00025456,4]
[366721576,1750417841703,-490.0,0.00025456,4]
[366721578,1750417841713,-490.0,0.00025456,4]
[366721580,1750417841723,-490.0,0.00025456,4]
[366721582,1750417841733,-462.68,0.00025456,4]
[366721584,1750417841742,-490.0,0.00025456,4]
[366721586,1750417841753,-432.46,0.00025456,4]
[366721588,1750417841763,-490.0,0.00025456,4]
[366721590,1750417841774,-960.59,0.00025456,4]
[366721592,1750417841784,-328.68,0.00025456,4]
[366721593,1750417841794,-490.0,0.00025456,4]
[366721596,1750417841805,-490.0,0.00025456,4]
[366721598,1750417841815,-490.0,0.00025456,4]
[366721600,1750417841824,-490.0,0.00025456,4]
[366721602,1750417841840,-490.0,0.00025456,4]
[366721604,1750417841852,-490.0,0.00025456,4]
[366721606,1750417841862,-490.0,0.00025456,4]
[366721608,1750417841872,-490.0,0.00025456,4]
[366721610,1750417841883,-392.42,0.00025456,4]
[366721612,1750417841893,-492.35016128,0.00025456,4]
[366721614,1750417841903,-491.18900441,0.00025456,4]
[366721616,1750417841914,-490.0,0.00025456,4]
[366721618,1750417841924,-407.47,0.00025456,4]
[366721620,1750417841934,-490.0,0.00025456,4]
[366721622,1750417841944,-490.0,0.00025456,4]
[366721624,1750417841954,-490.0,0.00025456,4]
[366721626,1750417841964,-500.0,0.00025456,4]
[366721628,1750417841974,-490.0,0.00025456,4]
[366721630,1750417841984,-490.0,0.00025456,4]
[366721632,1750417841995,-490.0,0.00025456,4]
[366721634,1750417842004,-222.74,0.00025456,4]
[366721636,1750417842014,-490.0,0.00025456,4]
[366721638,1750417842024,-490.0,0.00025456,4]
[366721640,1750417842034,-490.0,0.00025456,4]
[366721642,1750417842044,-490.0,0.00025456,4]